bitfinex/quotes_SOLUSD_20260102
["timestamp","ask_amount","ask_price","bid_price","bid_amount"]
[1767326357228,2.72543946,127.48,127.45,0.70282129]
[1767326357632,0.67884759,127.48,127.45,0.70282129]
[1767326359324,0.67884759,127.48,127.44,0.70282129]
[1767326359535,2.72543946,127.48,127.44,0.70282129]
[1767326360635,2.72543946,127.49,127.45,0.70282129]
[1767326361232,2.04659187,127.49,127.45,0.70282129]
[1767326361612,2.72543946,127.49,127.45,0.70282129]
[1767326361914,0.67884759,127.49,127.45,0.70282129]
[1767326362114,2.72543946,127.49,127.45,0.70282129]
[1767326364234,0.67884759,127.49,127.45,0.70282129]
[1767326364438,2.72543946,127.49,127.45,0.70282129]
[1767326365632,0.67884759,127.49,127.45,0.70282129]
[1767326365838,2.72543946,127.49,127.45,0.70282129]
[1767326366636,0.65633082,127.52,127.46,2.04659187]
[1767326366816,0.65633082,127.5,127.47,0.67316185]
[1767326367017,2.70292269,127.5,127.47,0.67316185]
[1767326367223,0.65633082,127.5,127.47,0.67316185]
[1767326367424,2.70292269,127.5,127.47,0.67316185]
[1767326369248,2.04659187,127.51,127.47,8.51813293]
[1767326369426,2.04659187,127.51,127.48,0.67316185]
[1767326369628,2.70292269,127.52,127.48,0.67316185]
[1767326371034,2.70292269,127.53,127.48,0.67316185]
[1767326371240,2.70292269,127.53,127.49,0.67316185]
[1767326371543,2.04659187,127.52,127.49,0.67316185]
[1767326372242,2.70292269,127.52,127.49,0.67316185]
[1767326372929,0.65633082,127.52,127.49,0.67316185]
[1767326373244,2.70292269,127.52,127.49,0.67316185]
[1767326374845,2.04659187,127.52,127.49,0.67316185]
[1767326375516,2.70292269,127.52,127.49,0.67316185]
[1767326377140,2.04659187,127.52,127.49,0.67316185]
[1767326378320,2.70292269,127.53,127.49,0.67316185]
[1767326378646,2.04659187,127.53,127.49,0.67316185]
[1767326378847,2.70292269,127.53,127.49,0.67316185]
[1767326381039,0.65633082,127.53,127.49,0.67316185]
[1767326381245,2.70292269,127.53,127.49,0.67316185]
[1767326382123,0.65633082,127.53,127.49,0.67316185]
[1767326382314,2.70292269,127.53,127.49,0.67316185]
[1767326382529,0.65633082,127.53,127.49,0.67316185]
[1767326382728,2.70292269,127.53,127.49,0.67316185]
[1767326383745,0.65633082,127.53,127.49,0.67316185]
[1767326383941,2.70292269,127.53,127.49,0.67316185]
[1767326384549,0.65633082,127.53,127.49,2.71975372]
[1767326384724,2.70292269,127.53,127.49,0.67316185]
[1767326385235,7.83926073,127.57,127.5,0.67316185]
[1767326385442,2.04659187,127.55,127.51,0.67316185]
[1767326386256,2.70292269,127.55,127.51,0.67316185]
[1767326387046,0.65633082,127.58,127.52,0.67316185]
[1767326387229,2.70292269,127.56,127.52,0.67316185]
[1767326388752,22.15873351,127.58,127.52,2.04659187]
[1767326388952,22.15873351,127.58,127.53,0.67316185]
[1767326388953,2.70292269,127.57,127.53,0.67316185]
[1767326389859,0.65633082,127.57,127.53,0.67316185]
[1767326390152,2.70292269,127.57,127.53,0.67316185]
[1767326392760,0.65633082,127.58,127.53,9.88766736]
[1767326393057,2.70292269,127.58,127.54,0.67316185]
[1767326394635,3.84710382,127.58,127.54,0.67316185]
[1767326400162,0.65633082,127.58,127.54,0.67316185]
[1767326400660,3.84710382,127.58,127.54,0.67316185]
[1767326401364,0.65633082,127.58,127.54,0.67316185]
[1767326401848,3.84710382,127.58,127.54,0.67316185]
[1767326402051,0.67884759,127.59,127.54,0.67316185]
[1767326402364,3.190773,127.58,127.54,0.67316185]
[1767326402534,0.1,127.62,127.56,0.69384342]
[1767326402734,3.96962059,127.62,127.58,0.69384342]
[1767326403138,3.190773,127.61,127.58,0.69384342]
[1767326403358,3.190773,127.61,127.58,0.66340058]
[1767326403559,3.96962059,127.62,127.58,0.66340058]
[1767326404264,3.190773,127.61,127.58,0.66340058]
[1767326404471,0.77884759,127.62,127.58,0.66340058]
[1767326404648,3.97824415,127.62,127.58,0.66340058]
[1767326405071,3.190773,127.61,127.58,0.66340058]
[1767326405365,0.78747115,127.62,127.58,0.66340058]
[1767326405744,3.97824415,127.62,127.58,0.66340058]
[1767326405968,0.78747115,127.62,127.58,0.66340058]
[1767326406180,3.97824415,127.62,127.58,0.66340058]
[1767326406468,3.97824415,127.62,127.55,3.190773]
[1767326406469,0.68747115,127.59,127.55,3.190773]
[1767326406645,3.190773,127.6,127.55,11.03069204]
[1767326406968,0.68747115,127.6,127.56,0.69384342]
[1767326407269,0.68747115,127.61,127.57,0.69384342]
[1767326407770,3.87824415,127.61,127.57,0.69384342]
[1767326407945,0.1,127.62,127.59,0.69384342]
[1767326409359,0.68747115,127.65,127.61,0.69384342]
[1767326409562,3.87824415,127.65,127.61,0.69384342]
[1767326410073,0.1,127.66,127.63,0.69384342]
[1767326410246,3.290773,127.66,127.63,0.66472336]
[1767326410447,3.97824415,127.66,127.63,0.66472336]
[1767326411042,0.1,127.66,127.63,0.66472336]
[1767326413546,0.1,127.67,127.65,0.69384342]
[1767326414053,3.87824415,127.7,127.66,0.69384342]
[1767326414469,0.68747115,127.7,127.66,0.69384342]
[1767326414668,3.87824415,127.7,127.66,0.69384342]
[1767326414967,0.68747115,127.7,127.66,0.69384342]
[1767326415158,0.68747115,127.7,127.67,0.69384342]
[1767326415570,3.87824415,127.7,127.67,0.69384342]
[1767326415950,0.68747115,127.67,127.63,61.2]
[1767326416161,3.87824415,127.65,127.61,0.69384342]
[1767326416674,3.87824415,127.66,127.62,0.69384342]
[1767326416873,3.87824415,127.66,127.62,0.66392638]
[1767326417075,3.87824415,127.63,127.58,3.190773]
[1767326417381,3.190773,127.62,127.58,3.190773]
[1767326417670,3.87824415,127.62,127.57,25.34905546]
[1767326417879,3.190773,127.61,127.57,14.32]
[1767326418171,3.87824415,127.62,127.57,17.510773]
[1767326418773,3.87824415,127.62,127.58,0.69384342]
[1767326419165,3.87824415,127.62,127.58,11.0287505]
[1767326419370,0.68747115,127.62,127.59,0.69384342]
[1767326419669,3.87824415,127.62,127.59,0.69384342]
[1767326419867,3.190773,127.64,127.6,0.69384342]
[1767326420478,3.87824415,127.64,127.6,0.69384342]
[1767326422057,3.190773,127.63,127.6,0.69384342]
[1767326422373,3.190773,127.62,127.6,0.69384342]
[1767326423782,3.190773,127.63,127.6,0.69384342]
[1767326425153,3.190773,127.64,127.6,69.03663757]
[1767326425353,3.190773,127.64,127.61,0.6581189]
[1767326426864,0.66389138,127.65,127.61,0.6581189]
[1767326427067,3.190773,127.65,127.61,0.6581189]
[1767326427363,0.66389138,127.66,127.62,0.6581189]
[1767326427364,3.190773,127.66,127.62,0.6581189]
[1767326427567,0.66389138,127.67,127.62,0.6581189]
[1767326427568,3.190773,127.65,127.62,0.6581189]
[1767326428083,3.190773,127.64,127.62,0.6581189]
[1767326429572,3.190773,127.63,127.6,61.2]
[1767326429777,3.190773,127.62,127.6,61.2]
[1767326431184,3.190773,127.62,127.59,61.8581189]
[1767326435389,0.66389138,127.63,127.59,61.2]
[1767326435693,0.66389138,127.64,127.6,0.6581189]
[1767326436166,3.190773,127.62,127.6,0.6581189]
[1767326436367,0.66389138,127.63,127.6,0.6581189]
[1767326436568,7.83355906,127.66,127.6,0.6581189]
[1767326436803,3.190773,127.68,127.61,0.6581189]
[1767326436804,11.02308824,127.68,127.61,0.6581189]
[1767326436970,7.83231524,127.68,127.62,0.6581189]
[1767326437165,0.66389138,127.67,127.62,0.6581189]
[1767326437699,3.190773,127.66,127.62,0.6581189]
[1767326438073,3.190773,127.67,127.63,0.6581189]
[1767326438274,3.190773,127.68,127.64,0.6581189]
[1767326439088,3.85466438,127.69,127.64,3.190773]
[1767326439286,3.190773,127.7,127.66,0.6581189]
[1767326439696,3.85466438,127.7,127.66,0.6581189]
[1767326441694,7.92925353,127.73,127.67,0.6581189]
[1767326441991,3.190773,127.72,127.68,0.6581189]
[1767326442180,3.290773,127.73,127.69,0.6581189]
[1767326442378,3.290773,127.73,127.69,0.62939216]
[1767326442583,0.1,127.73,127.69,11.02192801]
[1767326442781,0.1,127.73,127.66,3.190773]
[1767326442782,3.85466438,127.71,127.66,3.190773]
[1767326443102,3.190773,127.69,127.64,14.32]
[1767326443273,3.85466438,127.69,127.64,17.510773]
[1767326443475,3.85466438,127.69,127.65,7.83389278]
[1767326444501,3.190773,127.69,127.66,0.6581189]
[1767326445375,0.66389138,127.7,127.66,0.6581189]
[1767326445576,3.190773,127.69,127.66,0.6581189]
[1767326445805,3.85466438,127.69,127.66,0.6581189]
[1767326446202,3.85466438,127.69,127.65,7.83387621]
[1767326446495,3.190773,127.68,127.65,0.6581189]
[1767326446695,3.85466438,127.67,127.63,0.6581189]
[1767326446898,3.190773,127.66,127.63,0.6581189]
[1767326447089,3.190773,127.66,127.63,8.49311362]
[1767326449198,3.190773,127.66,127.63,7.83499472]
[1767326449405,3.85466438,127.67,127.64,0.6581189]
[1767326449694,3.190773,127.67,127.64,0.6581189]
[1767326449903,3.85466438,127.69,127.64,3.190773]
[1767326450109,3.85466438,127.69,127.65,0.6581189]
[1767326451494,3.85466438,127.69,127.65,8.49187425]
[1767326452998,3.190773,127.68,127.65,8.49187425]
[1767326454102,0.66389138,127.69,127.65,8.49187425]
[1767326454293,3.190773,127.68,127.65,8.49187425]
[1767326454806,3.85466438,127.69,127.65,8.49187425]
[1767326455307,3.190773,127.68,127.65,8.49187425]
[1767326456511,2.03867972,127.68,127.65,8.49187425]
[1767326456807,0.66389138,127.69,127.65,8.49187425]
[1767326456808,2.03867972,127.7,127.66,0.70165339]
[1767326456999,2.03867972,127.7,127.67,0.70165339]
[1767326457182,0.68630229,127.71,127.67,0.70165339]
[1767326457183,2.72498201,127.71,127.67,0.70165339]
[1767326458010,2.03867972,127.7,127.67,8.53427387]
[1767326460412,2.03867972,127.7,127.67,69.73427387]
[1767326460605,2.72498201,127.7,127.67,61.90165339]
[1767326461309,0.68630229,127.7,127.67,61.90165339]
[1767326461604,0.68630229,127.72,127.67,69.73418878]
[1767326461813,2.03867972,127.7,127.67,69.73418878]
[1767326461987,2.72498201,127.7,127.67,61.90165339]
[1767326462403,2.72498201,127.7,127.67,69.7341519]
[1767326463011,2.72498201,127.7,127.67,61.90165339]
[1767326463690,2.72498201,127.7,127.67,69.73432935]
[1767326465214,2.72498201,127.71,127.68,0.70165339]
[1767326466222,0.68630229,127.71,127.68,0.70165339]
[1767326466413,2.72498201,127.71,127.68,0.70165339]
[1767326466917,2.03867972,127.7,127.68,0.70165339]
[1767326467211,2.03867972,127.7,127.67,69.73432935]
[1767326467686,0.68630229,127.71,127.67,69.73432935]
[1767326467887,2.03867972,127.7,127.67,69.73432935]
[1767326468083,2.03867972,127.7,127.67,61.90165339]
[1767326469408,0.68630229,127.71,127.67,69.03213762]
[1767326469619,2.72498201,127.71,127.68,0.70165339]
[1767326471399,2.03867972,127.71,127.67,69.03213762]
[1767326471714,0.1,127.73,127.67,69.03213762]
[1767326471715,2.72498201,127.7,127.67,69.73379101]
[1767326471910,0.1,127.73,127.67,69.03213762]
[1767326472117,2.03867972,127.71,127.68,0.70165339]
[1767326472489,2.72498201,127.71,127.68,0.70165339]
[1767326473096,2.03867972,127.7,127.67,61.90165339]
[1767326473315,2.72498201,127.7,127.67,61.90165339]
[1767326473820,2.72498201,127.71,127.67,69.73425673]
[1767326474011,2.72498201,127.71,127.67,69.03260334]
[1767326474312,2.72498201,127.71,127.68,0.70165339]
[1767326476935,0.68630229,127.71,127.68,0.70165339]
[1767326477099,2.72498201,127.71,127.68,0.70165339]
[1767326482926,0.1,127.73,127.7,0.70165339]
[1767326484033,0.65582166,127.7,127.67,8.53338776]
[1767326484210,2.69450138,127.7,127.67,8.53338776]
[1767326484914,2.69450138,127.7,127.67,0.70109749]
[1767326486626,0.65582166,127.7,127.67,8.53365761]
[1767326486815,2.74295178,127.72,127.68,0.69791955]
[1767326487405,2.03867972,127.72,127.68,0.69791955]
[1767326488754,2.03867972,127.72,127.68,7.83185371]
[1767326488929,2.03867972,127.72,127.69,0.69791955]
[1767326491916,2.74295178,127.72,127.69,0.69791955]
[1767326492224,2.74295178,127.72,127.68,8.52977326]
[1767326492611,2.74295178,127.71,127.68,0.69791955]
[1767326492931,2.74295178,127.71,127.68,61.89791955]
[1767326493741,2.74295178,127.71,127.68,69.72997996]
[1767326495531,0.70427206,127.71,127.68,69.72997996]
[1767326495827,2.74295178,127.71,127.68,69.72997996]
[1767326497410,0.70427206,127.71,127.68,69.72997996]
[1767326497620,2.74295178,127.71,127.68,69.72997996]
[1767326498317,2.74295178,127.71,127.68,61.89791955]
[1767326498825,2.74295178,127.7,127.68,61.2]
[1767326499028,2.74295178,127.7,127.67,0.69791955]
[1767326499220,2.74295178,127.7,127.67,61.89791955]
[1767326500534,2.74295178,127.7,127.67,69.73059687]
[1767326502639,2.74295178,127.7,127.67,61.89791955]
[1767326504536,2.74295178,127.69,127.67,61.2]
[1767326504735,2.03867972,127.68,127.65,0.69791955]
[1767326506937,2.03867972,127.68,127.65,8.53172856]
[1767326507140,2.74295178,127.69,127.65,8.53172856]
[1767326507439,2.74295178,127.71,127.68,0.69791955]
[1767326507739,0.70427206,127.71,127.68,0.69791955]
[1767326507945,2.74295178,127.71,127.68,0.69791955]
[1767326512437,2.03867972,127.72,127.69,0.69791955]
[1767326512629,2.74295178,127.71,127.67,22.83036485]
[1767326512835,2.74295178,127.7,127.67,14.99791955]
[1767326513342,2.74295178,127.7,127.67,76.19791955]
[1767326513749,2.74295178,127.7,127.67,84.03060509]
[1767326515652,2.74295178,127.7,127.67,69.73060509]
[1767326517256,7.92904959,127.73,127.67,61.2]
[1767326517257,2.69308454,127.69,127.67,61.2]
[1767326517455,2.69308454,127.68,127.67,61.2]
[1767326517646,2.69308454,127.68,127.65,69.68623466]
[1767326517841,0.65440482,127.67,127.65,61.2]
[1767326518048,2.69308454,127.67,127.65,61.2]
[1767326518429,2.03867972,127.68,127.65,61.2]
[1767326518662,3.84011467,127.68,127.65,61.85268232]
[1767326519961,0.65440482,127.68,127.65,69.68647344]
[1767326520326,3.84011467,127.7,127.66,0.65268232]
[1767326521959,3.84011467,127.7,127.66,69.68590197]
[1767326522555,3.18570985,127.7,127.67,0.65268232]
[1767326523660,3.84011467,127.7,127.67,0.65268232]
[1767326524858,0.65440482,127.7,127.67,0.65268232]
[1767326525058,3.84011467,127.7,127.67,0.65268232]
[1767326527154,3.18570985,127.71,127.67,7.83254616]
[1767326527359,3.18570985,127.71,127.68,0.65268232]
[1767326527560,3.84011467,127.71,127.67,69.03254616]
[1767326527861,3.84011467,127.69,127.67,61.2]
[1767326528067,3.84011467,127.69,127.66,61.85268232]
[1767326529656,3.84011467,127.69,127.66,69.68593976]
[1767326535761,0.65440482,127.68,127.66,61.2]
[1767326535946,7.82978738,127.72,127.63,34.58703628]
[1767326535947,3.84011467,127.67,127.64,0.65268232]
[1767326536274,3.84011467,127.67,127.64,61.85268232]
[1767326536471,3.84011467,127.67,127.64,69.68719472]
[1767326537058,0.65440482,127.66,127.64,61.2]
[1767326537251,0.65440482,127.67,127.64,61.85268232]
[1767326537443,3.84011467,127.67,127.64,61.85268232]
[1767326538566,3.84011467,127.66,127.64,61.2]
[1767326538781,3.81011467,127.66,127.63,76.15268232]
[1767326539671,14.4,127.73,127.63,61.2]
[1767326539672,3.18570985,127.65,127.63,61.2]
[1767326539972,3.18570985,127.64,127.61,0.65268232]
[1767326540452,3.15570985,127.64,127.61,0.65268232]
[1767326541769,3.81011467,127.64,127.61,0.65268232]
[1767326541972,3.84011467,127.63,127.6,14.95268232]
[1767326542156,3.84011467,127.63,127.6,0.65268232]
[1767326542574,3.18570985,127.62,127.59,14.3]
[1767326542878,3.18570985,127.62,127.59,14.95268232]
[1767326542879,3.84011467,127.62,127.59,14.95268232]
[1767326544964,3.18570985,127.62,127.6,0.70177016]
[1767326545168,3.88215896,127.63,127.6,0.70177016]
[1767326545367,0.69644911,127.66,127.6,0.70177016]
[1767326545566,3.18570985,127.64,127.6,0.70177016]
[1767326545962,3.88215896,127.64,127.61,0.70177016]
[1767326546578,0.69644911,127.64,127.61,0.70177016]
[1767326546780,3.88215896,127.64,127.61,0.70177016]
[1767326548581,3.88215896,127.64,127.61,8.53809951]
[1767326550989,0.69644911,127.64,127.6,8.53853167]
[1767326551182,3.88215896,127.63,127.6,8.53853167]
[1767326552482,3.18570985,127.68,127.59,75.5]
[1767326552483,3.88215896,127.62,127.59,83.33736251]
[1767326552688,0.69644911,127.61,127.58,0.70177016]
[1767326552877,3.88215896,127.61,127.58,0.70177016]
[1767326553690,3.85215896,127.61,127.58,0.70177016]
[1767326553889,3.85215896,127.61,127.58,8.539823]
[1767326554287,0.66644911,127.61,127.58,8.539823]
[1767326557699,3.85215896,127.61,127.58,8.539823]
[1767326557996,0.66644911,127.61,127.58,8.539823]
[1767326558294,3.88215896,127.62,127.58,8.539823]
[1767326558487,0.69644911,127.61,127.58,8.539823]
[1767326562696,3.88215896,127.61,127.58,8.539823]
[1767326566302,0.69644911,127.61,127.58,8.539823]
[1767326566475,0.69644911,127.6,127.58,7.83805284]
[1767326566892,3.18570985,127.61,127.58,8.539823]
[1767326567209,3.88215896,127.61,127.58,8.539823]
[1767326567798,0.69644911,127.6,127.58,7.83805284]
[1767326568201,0.69644911,127.6,127.57,84.06034751]
[1767326569405,3.18570985,127.59,127.56,61.2]
[1767326569582,3.88215896,127.58,127.55,69.94157102]
[1767326570093,0.69644911,127.58,127.55,69.94157102]
[1767326570609,3.85215896,127.58,127.55,69.94157102]
[1767326573704,0.6739233,127.57,127.55,0.2]
[1767326573908,3.85963315,127.57,127.55,8.04001407]
[1767326575384,3.85963315,127.57,127.55,0.2]
[1767326580610,2.7161984,127.57,127.55,0.2]
[1767326581320,0.6739233,127.57,127.55,0.2]
[1767326581621,2.7161984,127.59,127.56,0.6795892]
[1767326581795,2.0422751,127.58,127.56,0.6795892]
[1767326581996,0.6739233,127.6,127.56,0.6795892]
[1767326582206,2.0422751,127.58,127.56,0.6795892]
[1767326582403,2.7161984,127.58,127.55,8.71964331]
[1767326583218,2.7161984,127.57,127.55,0.8795892]
[1767326584219,0.6739233,127.57,127.55,0.8795892]
[1767326584416,2.0422751,127.57,127.55,0.8795892]
[1767326587211,2.7161984,127.58,127.55,0.8795892]
[1767326588840,0.6739233,127.61,127.57,0.6795892]
[1767326589023,0.6739233,127.6,127.57,0.6795892]
[1767326589328,2.7161984,127.6,127.57,0.6795892]
[1767326591250,2.7161984,127.6,127.57,8.51827239]
[1767326592044,0.6739233,127.6,127.57,8.51827239]
[1767326596549,2.7161984,127.6,127.57,8.51827239]
[1767326596750,0.6739233,127.59,127.57,7.83868319]
[1767326597059,0.6739233,127.59,127.56,84.03879402]
[1767326597235,0.6739233,127.59,127.56,83.35920482]
[1767326597430,2.0422751,127.6,127.57,0.6795892]
[1767326597639,2.7161984,127.6,127.57,0.6795892]
[1767326600055,0.6739233,127.62,127.58,0.6795892]
[1767326600258,0.6739233,127.6,127.58,0.6795892]
[1767326600434,0.6739233,127.6,127.57,8.51830952]
[1767326600852,2.7161984,127.6,127.57,8.51830952]
[1767326601062,0.6739233,127.57,127.55,61.4]
[1767326601383,2.7161984,127.57,127.55,0.2]
[1767326605762,0.6739233,127.57,127.55,0.2]
[1767326606066,0.6739233,127.57,127.55,0.85445536]
[1767326607769,0.6739233,127.57,127.55,0.2]
[1767326608065,2.0422751,127.58,127.55,0.2]
[1767326608066,2.76079908,127.58,127.55,0.85445536]
[1767326611051,2.76079908,127.57,127.55,0.2]
[1767326614366,0.71852398,127.57,127.55,0.2]
[1767326614568,2.76079908,127.57,127.55,0.2]
[1767326616660,0.71852398,127.57,127.55,0.2]
[1767326616872,2.76079908,127.57,127.55,0.2]
[1767326619965,2.76079908,127.57,127.55,0.85445536]
[1767326620677,2.76079908,127.57,127.55,0.2]
[1767326636689,0.71852398,127.57,127.55,0.2]
[1767326636900,2.76079908,127.57,127.55,0.2]
[1767326637285,2.0422751,127.58,127.56,0.6536244]
[1767326637773,2.74460542,127.58,127.55,0.8536244]
[1767326638910,2.0422751,127.58,127.55,0.8536244]
[1767326639195,2.74460542,127.58,127.55,0.8536244]
[1767326640292,2.0422751,127.57,127.55,0.8536244]
[1767326640474,3.89335985,127.57,127.55,0.8536244]
[1767326640678,3.19102953,127.56,127.55,0.2]
[1767326641089,3.19102953,127.56,127.54,0.6536244]
[1767326644916,3.89335985,127.57,127.54,0.6536244]
[1767326647503,3.19102953,127.56,127.54,0.6536244]
[1767326650109,0.70233032,127.55,127.53,75.72]
[1767326650277,3.89335985,127.54,127.53,61.4]
[1767326650583,3.89335985,127.54,127.49,139.76501432]
[1767326650584,0.70233032,127.53,127.49,0.6536244]
[1767326650792,3.19102953,127.51,127.49,0.6536244]
[1767326650991,0.70233032,127.54,127.49,11.03476875]
[1767326651197,0.70233032,127.54,127.5,0.6536244]
[1767326651415,3.89335985,127.54,127.5,0.6536244]
[1767326651786,0.70233032,127.53,127.5,0.6536244]
[1767326651986,3.19102953,127.54,127.5,0.6536244]
[1767326653514,3.19102953,127.52,127.49,7.84373922]
[1767326653691,3.19102953,127.51,127.49,0.6536244]
[1767326654582,3.16102953,127.51,127.49,0.6536244]
[1767326658110,3.89335985,127.52,127.49,0.6536244]
[1767326658695,19.5979687,127.57,127.5,0.6536244]
[1767326658696,3.89335985,127.54,127.5,0.6536244]
[1767326658896,3.89335985,127.54,127.51,0.6536244]
[1767326659305,3.89335985,127.53,127.51,0.6536244]
[1767326659501,3.89335985,127.53,127.49,11.0344783]
[1767326659704,3.86335985,127.53,127.5,0.6536244]
[1767326660404,0.70233032,127.52,127.5,0.6536244]
[1767326660624,0.70233032,127.52,127.49,7.84344877]
[1767326660799,0.70233032,127.52,127.49,8.49707317]
[1767326661298,3.89335985,127.52,127.49,8.49707317]
[1767326662015,3.89335985,127.52,127.49,0.6536244]
[1767326662512,0.70233032,127.52,127.49,0.6536244]
[1767326662717,3.89335985,127.52,127.49,0.6536244]
[1767326665621,0.70233032,127.52,127.49,0.6536244]
[1767326665807,3.89335985,127.52,127.49,8.49721187]
[1767326667213,0.70233032,127.52,127.49,8.49721187]
[1767326667522,3.89335985,127.52,127.49,8.49721187]
[1767326670422,0.70233032,127.52,127.49,8.49721187]
[1767326671612,0.67503922,127.51,127.49,8.49721187]
[1767326672429,0.05205427,127.49,127.47,0.2]
[1767326672606,3.19102953,127.48,127.45,8.72357774]
[1767326673901,3.19102953,127.48,127.46,0.67771674]
[1767326674229,3.2430838,127.49,127.46,0.67771674]
[1767326674821,3.19102953,127.48,127.46,0.67771674]
[1767326675420,3.19102953,127.48,127.45,8.045861]
[1767326675625,3.19102953,127.48,127.45,8.72357774]
[1767326676452,0.05205427,127.47,127.45,0.2]
[1767326676617,3.2430838,127.48,127.45,0.2]
[1767326677102,3.19102953,127.48,127.45,0.2]
[1767326677303,3.2430838,127.47,127.45,0.2]
[1767326677504,0.05205427,127.47,127.45,0.2]
[1767326679708,0.05205427,127.47,127.45,0.14794573]
[1767326680104,3.19102953,127.47,127.45,0.14794573]
[1767326680722,3.19102953,127.48,127.45,0.14794573]
[1767326681128,3.19102953,127.47,127.45,0.14794573]
[1767326682217,11.03606323,127.47,127.45,0.14794573]
[1767326683034,3.19102953,127.46,127.42,0.2]
[1767326683217,3.19102953,127.45,127.42,0.2]
[1767326688024,11.0373293,127.45,127.42,0.2]
[1767326688537,7.84629977,127.45,127.42,0.2]
[1767326688731,11.0373293,127.45,127.42,0.2]
[1767326689947,3.19102953,127.47,127.42,4.06874627]
[1767326690461,3.19102953,127.46,127.42,0.87771674]
[1767326691045,3.19102953,127.46,127.42,0.2]
[1767326691218,19.61185569,127.48,127.42,0.2]
[1767326691219,3.19102953,127.45,127.42,0.2]
[1767326695147,3.19102953,127.44,127.42,0.2]
[1767326695657,3.19102953,127.45,127.42,0.2]
[1767326696251,3.19102953,127.45,127.42,0.88361754]
[1767326696465,3.19102953,127.45,127.42,0.2]
[1767326697838,11.03738076,127.45,127.42,0.2]
[1767326698979,3.19102953,127.45,127.42,0.2]
[1767326699943,19.61185569,127.48,127.42,0.2]
[1767326700131,3.19102953,127.45,127.42,0.2]
[1767326700327,3.19102953,127.46,127.43,0.68361754]
[1767326700527,3.19102953,127.47,127.43,0.68361754]
[1767326700957,3.19102953,127.48,127.45,0.68361754]
[1767326701332,3.19102953,127.47,127.43,3.19102953]
[1767326701532,3.19102953,127.47,127.44,0.68361754]
[1767326702556,2.04572195,127.47,127.44,0.68361754]
[1767326703354,7.84375245,127.49,127.44,0.68361754]
[1767326703564,27.44534914,127.53,127.45,0.68361754]
[1767326703861,2.04572195,127.49,127.46,0.68361754]
[1767326704062,7.8429482,127.51,127.46,0.68361754]
[1767326704262,2.04572195,127.49,127.46,0.68361754]
[1767326704445,2.04572195,127.48,127.45,0.68361754]
[1767326704646,2.04572195,127.49,127.45,0.68361754]
[1767326705275,41.78691973,127.52,127.45,0.68361754]
[1767326705564,2.04572195,127.49,127.45,0.68361754]
[1767326705752,9.8888592,127.5,127.44,0.68361754]
[1767326705952,2.04572195,127.47,127.44,0.68361754]
[1767326706155,2.04572195,127.46,127.43,0.68361754]
[1767326707067,43.83670233,127.5,127.43,0.68361754]
[1767326707068,2.04572195,127.47,127.43,0.68361754]
[1767326707462,2.04572195,127.48,127.44,0.68361754]
[1767326709764,39.20392395,127.54,127.45,0.68361754]
[1767326709765,2.04572195,127.49,127.45,0.68361754]
[1767326709963,14.34,127.51,127.45,0.68361754]
[1767326710149,2.04572195,127.49,127.45,0.68361754]
[1767326710353,14.34,127.51,127.45,0.68361754]
[1767326710552,2.04572195,127.49,127.45,0.68361754]
[1767326711842,7.84371886,127.5,127.45,0.68361754]
[1767326712043,2.04572195,127.49,127.45,0.68361754]
[1767326712255,9.88944081,127.5,127.45,0.68361754]
[1767326712568,24.22846287,127.51,127.47,0.68361754]
[1767326712871,9.88846287,127.51,127.47,0.68361754]
[1767326713165,7.84274092,127.51,127.47,0.68361754]
[1767326713368,2.04572195,127.5,127.47,0.68361754]
[1767326713569,2.04572195,127.51,127.47,0.68361754]
[1767326713751,2.04572195,127.52,127.48,0.68361754]
[1767326713944,22.1817378,127.53,127.48,2.72933949]
[1767326714150,2.04572195,127.52,127.48,0.68361754]
[1767326716850,9.88769778,127.52,127.48,0.68361754]
[1767326718258,9.88701419,127.53,127.48,0.68361754]
[1767326718670,7.84129224,127.53,127.48,2.04572195]
[1767326718862,14.34,127.55,127.5,0.68361754]
[1767326719177,16.38572195,127.55,127.51,0.68361754]
[1767326719353,2.04572195,127.54,127.51,0.68361754]
[1767326720164,7.84062855,127.55,127.51,0.68361754]
[1767326720365,9.8863505,127.55,127.51,0.68361754]
[1767326722354,7.84062855,127.55,127.51,0.68361754]
[1767326722578,2.04572195,127.54,127.51,0.68361754]
[1767326722776,9.88649542,127.54,127.49,2.04572195]
[1767326723074,2.04572195,127.53,127.49,0.68361754]
[1767326723275,9.88597835,127.55,127.5,0.68361754]
[1767326723981,2.04572195,127.54,127.5,0.68361754]
[1767326724678,7.84075514,127.54,127.5,0.68361754]
[1767326724876,9.88647709,127.54,127.5,0.68361754]
[1767326726377,2.04572195,127.51,127.47,0.65508614]
[1767326726581,14.32,127.52,127.47,0.65508614]
[1767326726878,16.36572195,127.52,127.48,0.65508614]
[1767326728878,24.2081223,127.52,127.48,0.65508614]